[Event "Titled Tuesday Blitz July 4 Late 2023"]
[White "ElenGajger"]
[Black "Storme, Isak"]
[BlackFideId "1728113"]
[WhiteElo "2363"]
[BlackElo "2541"]
[Result "0-1"]
[Round "3"]
[TimeControl "180+2"]
[Date "2023.07.04"]
[WhiteClock "0:00:00"]
[BlackClock "0:00:08"]
[Board "112"]

1. e4 {[%clk 0:02:59]}  e5 {[%clk 0:02:59]} 2. d4 {[%clk 0:02:59]}  exd4 {[%clk 0:02:53]} 3. Nf3 {[%clk 0:02:58]}  d6 {[%clk 0:02:47]} 4. Bc4 {[%clk 0:02:57]}  Nf6 {[%clk 0:02:47]} 5. Qxd4 {[%clk 0:02:53]}  Nc6 {[%clk 0:02:46]} 6. Qe3 {[%clk 0:02:51]}  g6 {[%clk 0:02:47]} 7. h3 {[%clk 0:02:51]}  Bg7 {[%clk 0:02:47]} 8. O-O {[%clk 0:02:51]}  O-O {[%clk 0:02:47]} 9. Nc3 {[%clk 0:02:51]}  Nd7 {[%clk 0:02:41]} 10. Re1 {[%clk 0:02:41]}  Nb6 {[%clk 0:02:36]} 11. Bf1 {[%clk 0:02:40]}  Re8 {[%clk 0:02:34]} 12. Qg5 {[%clk 0:02:31]}  Qxg5 {[%clk 0:02:29]} 13. Bxg5 {[%clk 0:02:30]}  h6 {[%clk 0:02:18]} 14. Bd2 {[%clk 0:02:23]}  Be6 {[%clk 0:02:04]} 15. Rad1 {[%clk 0:02:19]}  Nc4 {[%clk 0:02:04]} 16. Bxc4 {[%clk 0:02:17]}  Bxc4 {[%clk 0:02:05]} 17. b3 {[%clk 0:02:15]}  Be6 {[%clk 0:02:03]} 18. Nd5 {[%clk 0:02:03]}  Rac8 {[%clk 0:01:54]} 19. c4 {[%clk 0:01:52]}  f6 {[%clk 0:01:27]} 20. Bc3 {[%clk 0:01:41]}  Kf7 {[%clk 0:01:25]} 21. Nh4 {[%clk 0:01:16]}  Bd7 {[%clk 0:01:23]} 22. f4 {[%clk 0:01:11]}  h5 {[%clk 0:01:17]} 23. Kf2 {[%clk 0:01:08]}  Ne7 {[%clk 0:01:16]} 24. Nxe7 {[%clk 0:01:05]}  Rxe7 {[%clk 0:01:16]} 25. f5 {[%clk 0:01:02]}  g5 {[%clk 0:01:16]} 26. Ng6 {[%clk 0:01:02]}  Ree8 {[%clk 0:01:15]} 27. g4 {[%clk 0:01:00]}  h4 {[%clk 0:01:14]} 28. Kf3 {[%clk 0:00:54]}  Bc6 {[%clk 0:01:14]} 29. Re2 {[%clk 0:00:50]}  b5 {[%clk 0:01:11]} 30. cxb5 {[%clk 0:00:47]}  Bxb5 {[%clk 0:01:10]} 31. Rc2 {[%clk 0:00:46]}  Bc6 {[%clk 0:01:06]} 32. Re1 {[%clk 0:00:42]}  Ba8 {[%clk 0:00:56]} 33. Rd2 {[%clk 0:00:39]}  d5 {[%clk 0:00:54]} 34. Kf2 {[%clk 0:00:22]}  Rcd8 {[%clk 0:00:45]} 35. e5 {[%clk 0:00:21]}  c5 {[%clk 0:00:42]} 36. e6+ {[%clk 0:00:19]}  Kg8 {[%clk 0:00:42]} 37. Ba5 {[%clk 0:00:18]}  Rd6 {[%clk 0:00:39]} 38. Rc1 {[%clk 0:00:19]}  c4 {[%clk 0:00:31]} 39. bxc4 {[%clk 0:00:17]}  Ra6 {[%clk 0:00:30]} 40. Bc3 {[%clk 0:00:15]}  dxc4 {[%clk 0:00:28]} 41. Rd7 {[%clk 0:00:14]}  Rxa2+ {[%clk 0:00:28]} 42. Ke3 {[%clk 0:00:14]}  Rh2 {[%clk 0:00:25]} 43. Rcd1 {[%clk 0:00:12]}  Rxh3+ {[%clk 0:00:25]} 44. Kf2 {[%clk 0:00:11]}  Rxc3 {[%clk 0:00:22]} 45. Rf7 {[%clk 0:00:10]}  Rf3+ {[%clk 0:00:19]} 46. Ke2 {[%clk 0:00:10]}  Rd3 {[%clk 0:00:19]} 47. Rb1 {[%clk 0:00:10]}  Bf3+ {[%clk 0:00:16]} 48. Kf2 {[%clk 0:00:09]}  Be4 {[%clk 0:00:12]} 49. Rc1 {[%clk 0:00:07]}  c3 {[%clk 0:00:12]} 50. Re1 {[%clk 0:00:07]}  Bf3 {[%clk 0:00:11]} 51. Ra1 {[%clk 0:00:06]}  Ra8 {[%clk 0:00:09]} 52. Ne7+ {[%clk 0:00:05]}  Kh7 {[%clk 0:00:09]} 53. Rb1 {[%clk 0:00:04]}  c2 {[%clk 0:00:09]} 54. Rc1 {[%clk 0:00:04]}  Rc3 {[%clk 0:00:09]} 55. Ng6 {[%clk 0:00:05]}  Bxg4 {[%clk 0:00:09]} 56. e7 {[%clk 0:00:05]}  Bxf5 {[%clk 0:00:09]} 57. Nf8+ {[%clk 0:00:05]}  Kg8 {[%clk 0:00:08]} 58. Rxg7+ {[%clk 0:00:05]}  Kxg7 {[%clk 0:00:08]} 59. Nd7 {[%clk 0:00:05]}  Re8 {[%clk 0:00:08]} 60. Nc5 {[%clk 0:00:04]}  Rxc5 {[%clk 0:00:06]} 61. Re1 {[%clk 0:00:04]}  Rxe7 {[%clk 0:00:07]} 62. Rxe7+ {[%clk 0:00:04]}  Kg6 {[%clk 0:00:07]} 63. Re1 {[%clk 0:00:05]}  c1=Q {[%clk 0:00:07]} 64. Rxc1 {[%clk 0:00:00]}  Rxc1 {[%clk 0:00:08]} 0-1


[Site "https://www.chess.com"]

[Event "Titled Tuesday Blitz July 4 Late 2023"]
[White "Fiol, Fabrice"]
[Black "Mazibuko, Khanya"]
[WhiteFideId "611670"]
[BlackFideId "14321041"]
[WhiteElo "2540"]
[BlackElo "2361"]
[Result "1-0"]
[Round "3"]
[TimeControl "180+2"]
[Date "2023.07.04"]
[WhiteClock "0:00:48"]
[BlackClock "0:01:27"]
[Board "113"]

1. e4 {[%clk 0:03:00]}  e5 {[%clk 0:02:59]} 2. Nf3 {[%clk 0:02:55]}  Nc6 {[%clk 0:02:59]} 3. Bc4 {[%clk 0:02:55]}  Bc5 {[%clk 0:02:59]} 4. d3 {[%clk 0:02:55]}  Nf6 {[%clk 0:02:58]} 5. c3 {[%clk 0:02:54]}  d6 {[%clk 0:02:54]} 6. Bb3 {[%clk 0:02:54]}  a6 {[%clk 0:02:53]} 7. Nbd2 {[%clk 0:02:54]}  Ba7 {[%clk 0:02:53]} 8. h3 {[%clk 0:02:54]}  O-O {[%clk 0:02:52]} 9. Nf1 {[%clk 0:02:53]}  Be6 {[%clk 0:02:52]} 10. Ng3 {[%clk 0:02:53]}  d5 {[%clk 0:02:52]} 11. Qe2 {[%clk 0:02:50]}  Qd7 {[%clk 0:02:48]} 12. O-O {[%clk 0:02:49]}  dxe4 {[%clk 0:02:48]} 13. dxe4 {[%clk 0:02:47]}  Bxb3 {[%clk 0:02:47]} 14. axb3 {[%clk 0:02:46]}  Qe6 {[%clk 0:02:47]} 15. b4 {[%clk 0:02:33]}  h6 {[%clk 0:02:47]} 16. Nf5 {[%clk 0:02:22]}  Ne7 {[%clk 0:02:41]} 17. N3h4 {[%clk 0:02:19]}  Nxf5 {[%clk 0:02:38]} 18. Nxf5 {[%clk 0:02:19]}  Rfd8 {[%clk 0:02:32]} 19. Qf3 {[%clk 0:02:18]}  Rd7 {[%clk 0:02:30]} 20. Qg3 {[%clk 0:02:05]}  Nh5 {[%clk 0:02:29]} 21. Qg4 {[%clk 0:02:03]}  Qg6 {[%clk 0:02:28]} 22. Nxh6+ {[%clk 0:01:44]}  gxh6 {[%clk 0:02:26]} 23. Qxd7 {[%clk 0:01:43]}  Ng3 {[%clk 0:02:18]} 24. Re1 {[%clk 0:01:27]}  Nxe4 {[%clk 0:02:12]} 25. Be3 {[%clk 0:01:21]}  Bxe3 {[%clk 0:01:58]} 26. Rxe3 {[%clk 0:01:12]}  Nf6 {[%clk 0:01:42]} 27. Qxc7 {[%clk 0:00:48]}  Nd5 {[%clk 0:01:27]} 28. Qxb7 {[%clk 0:00:48]} 1-0


[Site "https://www.chess.com"]

[Event "Titled Tuesday Blitz July 4 Late 2023"]
[White "Moral Garcia, Serafin"]
[Black "Alahakoon, Isuru"]
[WhiteFideId "2201925"]
[BlackFideId "9900993"]
[WhiteElo "2539"]
[BlackElo "2352"]
[Result "0-1"]
[Round "3"]
[TimeControl "180+2"]
[Date "2023.07.04"]
[WhiteClock "0:01:54"]
[BlackClock "0:01:15"]
[Board "114"]

1. c4 {[%clk 0:03:00]}  b6 {[%clk 0:02:57]} 2. Nc3 {[%clk 0:02:59]}  Bb7 {[%clk 0:02:56]} 3. e4 {[%clk 0:02:59]}  e6 {[%clk 0:02:55]} 4. d3 {[%clk 0:02:57]}  g6 {[%clk 0:02:51]} 5. Nge2 {[%clk 0:02:56]}  Bg7 {[%clk 0:02:51]} 6. Be3 {[%clk 0:02:56]}  Ne7 {[%clk 0:02:48]} 7. g3 {[%clk 0:02:55]}  d5 {[%clk 0:02:45]} 8. cxd5 {[%clk 0:02:50]}  exd5 {[%clk 0:02:45]} 9. Bd4 {[%clk 0:02:30]}  Bxd4 {[%clk 0:02:29]} 10. Nxd4 {[%clk 0:02:28]}  c5 {[%clk 0:02:23]} 11. Nde2 {[%clk 0:02:28]}  d4 {[%clk 0:02:18]} 12. Nb1 {[%clk 0:02:27]}  f5 {[%clk 0:02:18]} 13. Bg2 {[%clk 0:02:26]}  fxe4 {[%clk 0:02:18]} 14. dxe4 {[%clk 0:02:26]}  O-O {[%clk 0:02:17]} 15. O-O {[%clk 0:02:25]}  Nbc6 {[%clk 0:02:16]} 16. f4 {[%clk 0:02:23]}  Kg7 {[%clk 0:02:11]} 17. Na3 {[%clk 0:02:20]}  Nb4 {[%clk 0:02:04]} 18. Nc4 {[%clk 0:02:16]}  d3 {[%clk 0:02:02]} 19. Nc3 {[%clk 0:02:15]}  Qd4+ {[%clk 0:02:00]} 20. Kh1 {[%clk 0:02:11]}  Qxc4 {[%clk 0:02:00]} 21. Qd2 {[%clk 0:02:10]}  Rae8 {[%clk 0:01:53]} 22. a3 {[%clk 0:02:07]}  Nc2 {[%clk 0:01:49]} 23. Rac1 {[%clk 0:02:05]}  Qd4 {[%clk 0:01:35]} 24. Rfd1 {[%clk 0:02:03]}  Ne3 {[%clk 0:01:32]} 25. Re1 {[%clk 0:02:02]}  Nxg2 {[%clk 0:01:31]} 26. Kxg2 {[%clk 0:02:01]}  Nf5 {[%clk 0:01:26]} 27. Kf1 {[%clk 0:01:59]}  Nd6 {[%clk 0:01:23]} 28. e5 {[%clk 0:01:59]}  Nf5 {[%clk 0:01:20]} 29. Nb5 {[%clk 0:01:54]}  Qd5 {[%clk 0:01:15]} 0-1


[Site "https://www.chess.com"]

[Event "Titled Tuesday Blitz July 4 Late 2023"]
[White "Kozelov, Roman"]
[Black "Osmak, Yuliia"]
[WhiteFideId "14133377"]
[BlackFideId "14101602"]
[WhiteElo "2342"]
[BlackElo "2537"]
[Result "1-0"]
[Round "3"]
[TimeControl "180+2"]
[Date "2023.07.04"]
[WhiteClock "0:01:13"]
[BlackClock "0:00:00"]
[Board "115"]

1. e4 {[%clk 0:02:49]}  e6 {[%clk 0:02:52]} 2. d4 {[%clk 0:02:48]}  d5 {[%clk 0:02:53]} 3. Nc3 {[%clk 0:02:48]}  Bb4 {[%clk 0:02:51]} 4. e5 {[%clk 0:02:48]}  Ne7 {[%clk 0:02:51]} 5. a3 {[%clk 0:02:48]}  Bxc3+ {[%clk 0:02:50]} 6. bxc3 {[%clk 0:02:49]}  c5 {[%clk 0:02:51]} 7. Qg4 {[%clk 0:02:48]}  Kf8 {[%clk 0:02:50]} 8. Qd1 {[%clk 0:02:47]}  Qc7 {[%clk 0:02:43]} 9. Nf3 {[%clk 0:02:45]}  b6 {[%clk 0:02:36]} 10. a4 {[%clk 0:02:43]}  Ba6 {[%clk 0:02:32]} 11. Bb5 {[%clk 0:02:40]}  Bxb5 {[%clk 0:02:18]} 12. axb5 {[%clk 0:02:40]}  cxd4 {[%clk 0:02:18]} 13. cxd4 {[%clk 0:02:39]}  Qc4 {[%clk 0:02:18]} 14. Qd3 {[%clk 0:02:36]}  Qxd3 {[%clk 0:02:08]} 15. cxd3 {[%clk 0:02:36]}  a5 {[%clk 0:02:06]} 16. bxa6 {[%clk 0:02:35]}  Rxa6 {[%clk 0:02:05]} 17. Rxa6 {[%clk 0:02:34]}  Nxa6 {[%clk 0:02:06]} 18. Ba3 {[%clk 0:02:34]}  Ke8 {[%clk 0:01:59]} 19. Kd2 {[%clk 0:02:34]}  Kd7 {[%clk 0:01:58]} 20. Rb1 {[%clk 0:02:31]}  Rb8 {[%clk 0:01:53]} 21. Ng5 {[%clk 0:02:30]}  Nc6 {[%clk 0:01:34]} 22. Ke3 {[%clk 0:02:16]}  h6 {[%clk 0:00:55]} 23. Nxf7 {[%clk 0:02:14]}  b5 {[%clk 0:00:55]} 24. Nd6 {[%clk 0:02:04]}  b4 {[%clk 0:00:53]} 25. Bc1 {[%clk 0:02:04]}  Nc7 {[%clk 0:00:48]} 26. Bd2 {[%clk 0:01:59]}  Nb5 {[%clk 0:00:43]} 27. Nxb5 {[%clk 0:01:58]}  Rxb5 {[%clk 0:00:44]} 28. f4 {[%clk 0:01:51]}  Ra5 {[%clk 0:00:42]} 29. g4 {[%clk 0:01:45]}  Ra2 {[%clk 0:00:37]} 30. f5 {[%clk 0:01:31]}  Nxd4 {[%clk 0:00:30]} 31. Kxd4 {[%clk 0:01:31]}  Rxd2 {[%clk 0:00:30]} 32. Rxb4 {[%clk 0:01:31]}  Rxh2 {[%clk 0:00:22]} 33. Rb7+ {[%clk 0:01:30]}  Kc6 {[%clk 0:00:23]} 34. Rxg7 {[%clk 0:01:31]}  Rf2 {[%clk 0:00:17]} 35. fxe6 {[%clk 0:01:24]}  Rf3 {[%clk 0:00:16]} 36. Rg6 {[%clk 0:01:20]}  Kc7 {[%clk 0:00:14]} 37. Rxh6 {[%clk 0:01:17]}  Kd8 {[%clk 0:00:14]} 38. Rh7 {[%clk 0:01:15]}  Ke8 {[%clk 0:00:12]} 39. Rf7 {[%clk 0:01:13]}  Rg3 {[%clk 0:00:10]} 40. g5 {[%clk 0:01:14]}  Rxg5 {[%clk 0:00:03]} 41. Kxd5 {[%clk 0:01:14]}  Rg3 {[%clk 0:00:02]} 42. d4 {[%clk 0:01:14]}  Ra3 {[%clk 0:00:00]} 43. Ke4 {[%clk 0:01:13]} 1-0


[Site "https://www.chess.com"]

[Event "Titled Tuesday Blitz July 4 Late 2023"]
[White "Prem, Pranav"]
[Black "Ozen, Batuhan"]
[WhiteFideId "30901057"]
[BlackFideId "6345123"]
[WhiteElo "2530"]
[BlackElo "2338"]
[Result "1-0"]
[Round "3"]
[TimeControl "180+2"]
[Date "2023.07.04"]
[WhiteClock "0:00:11"]
[BlackClock "0:00:00"]
[Board "118"]

1. d4 {[%clk 0:02:58]}  Nf6 {[%clk 0:02:56]} 2. c4 {[%clk 0:02:58]}  e6 {[%clk 0:02:53]} 3. Nf3 {[%clk 0:02:53]}  d5 {[%clk 0:02:53]} 4. Nc3 {[%clk 0:02:53]}  Be7 {[%clk 0:02:52]} 5. Bg5 {[%clk 0:02:52]}  O-O {[%clk 0:02:51]} 6. e3 {[%clk 0:02:51]}  b6 {[%clk 0:02:40]} 7. cxd5 {[%clk 0:02:50]}  Nxd5 {[%clk 0:02:37]} 8. Bxe7 {[%clk 0:02:50]}  Nxe7 {[%clk 0:02:37]} 9. Bd3 {[%clk 0:02:49]}  Bb7 {[%clk 0:02:37]} 10. O-O {[%clk 0:02:47]}  h6 {[%clk 0:02:32]} 11. Qe2 {[%clk 0:02:35]}  Nd7 {[%clk 0:02:32]} 12. Rfd1 {[%clk 0:02:34]}  Nf6 {[%clk 0:02:27]} 13. Rac1 {[%clk 0:02:31]}  Ned5 {[%clk 0:02:22]} 14. Ne5 {[%clk 0:01:58]}  Rc8 {[%clk 0:02:10]} 15. Nb5 {[%clk 0:01:42]}  a6 {[%clk 0:02:02]} 16. Na7 {[%clk 0:01:20]}  Ra8 {[%clk 0:01:55]} 17. Nac6 {[%clk 0:01:19]}  Qe8 {[%clk 0:01:48]} 18. Bb1 {[%clk 0:01:11]}  Nd7 {[%clk 0:01:43]} 19. Qd3 {[%clk 0:00:54]}  f5 {[%clk 0:01:41]} 20. f3 {[%clk 0:00:37]}  Nxe5 {[%clk 0:01:41]} 21. Nxe5 {[%clk 0:00:37]}  Rc8 {[%clk 0:01:36]} 22. a3 {[%clk 0:00:30]}  a5 {[%clk 0:01:26]} 23. Ba2 {[%clk 0:00:20]}  Rf6 {[%clk 0:01:25]} 24. Qd2 {[%clk 0:00:20]}  Kh7 {[%clk 0:01:22]} 25. e4 {[%clk 0:00:20]}  fxe4 {[%clk 0:01:21]} 26. fxe4 {[%clk 0:00:21]}  Nf4 {[%clk 0:01:20]} 27. Rf1 {[%clk 0:00:21]}  Ng6 {[%clk 0:01:12]} 28. Nxg6 {[%clk 0:00:19]}  Rxg6 {[%clk 0:01:10]} 29. Bb1 {[%clk 0:00:19]}  e5 {[%clk 0:01:10]} 30. d5 {[%clk 0:00:18]}  Ba6 {[%clk 0:01:06]} 31. Rf5 {[%clk 0:00:18]}  Qe7 {[%clk 0:01:03]} 32. Bd3 {[%clk 0:00:16]}  Bxd3 {[%clk 0:01:02]} 33. Qxd3 {[%clk 0:00:17]}  Rd8 {[%clk 0:01:01]} 34. Rcf1 {[%clk 0:00:17]}  c6 {[%clk 0:00:59]} 35. Qc4 {[%clk 0:00:15]}  cxd5 {[%clk 0:00:59]} 36. exd5 {[%clk 0:00:16]}  e4 {[%clk 0:00:51]} 37. Re1 {[%clk 0:00:10]}  Re8 {[%clk 0:00:48]} 38. Re3 {[%clk 0:00:10]}  Rd6 {[%clk 0:00:42]} 39. Rf4 {[%clk 0:00:09]}  Red8 {[%clk 0:00:37]} 40. Rfxe4 {[%clk 0:00:09]}  Qf6 {[%clk 0:00:37]} 41. Re5 {[%clk 0:00:09]}  Rf8 {[%clk 0:00:34]} 42. h3 {[%clk 0:00:06]}  Qf2+ {[%clk 0:00:29]} 43. Kh2 {[%clk 0:00:07]}  Qf4+ {[%clk 0:00:26]} 44. Qxf4 {[%clk 0:00:07]}  Rxf4 {[%clk 0:00:27]} 45. Rg3 {[%clk 0:00:08]}  Rd7 {[%clk 0:00:22]} 46. Re6 {[%clk 0:00:07]}  Rd4 {[%clk 0:00:22]} 47. Rxb6 {[%clk 0:00:08]}  R4xd5 {[%clk 0:00:21]} 48. Rgb3 {[%clk 0:00:08]}  Rg5 {[%clk 0:00:21]} 49. R6b5 {[%clk 0:00:08]}  Rd2 {[%clk 0:00:18]} 50. Rxg5 {[%clk 0:00:08]}  hxg5 {[%clk 0:00:19]} 51. Rb5 {[%clk 0:00:08]}  Kh6 {[%clk 0:00:19]} 52. Rxa5 {[%clk 0:00:07]}  Rxb2 {[%clk 0:00:20]} 53. Kg3 {[%clk 0:00:07]}  Ra2 {[%clk 0:00:20]} 54. Kh2 {[%clk 0:00:08]}  g6 {[%clk 0:00:20]} 55. Ra6 {[%clk 0:00:08]}  Kh5 {[%clk 0:00:20]} 56. Ra8 {[%clk 0:00:07]}  g4 {[%clk 0:00:21]} 57. hxg4+ {[%clk 0:00:07]}  Kxg4 {[%clk 0:00:22]} 58. a4 {[%clk 0:00:07]}  g5 {[%clk 0:00:21]} 59. a5 {[%clk 0:00:08]}  Kf4 {[%clk 0:00:21]} 60. a6 {[%clk 0:00:08]}  Kg4 {[%clk 0:00:21]} 61. a7 {[%clk 0:00:09]}  Ra3 {[%clk 0:00:21]} 62. Re8 {[%clk 0:00:08]}  Rxa7 {[%clk 0:00:21]} 63. Re4+ {[%clk 0:00:08]}  Kf5 {[%clk 0:00:20]} 64. Re3 {[%clk 0:00:09]}  g4 {[%clk 0:00:20]} 65. Rc3 {[%clk 0:00:08]}  Kf4 {[%clk 0:00:18]} 66. Rc4+ {[%clk 0:00:08]}  Kg5 {[%clk 0:00:18]} 67. Rc3 {[%clk 0:00:08]}  Ra5 {[%clk 0:00:18]} 68. Kg3 {[%clk 0:00:08]}  Re5 {[%clk 0:00:16]} 69. Rb3 {[%clk 0:00:08]}  Rd5 {[%clk 0:00:16]} 70. Rc3 {[%clk 0:00:08]}  Kf5 {[%clk 0:00:17]} 71. Rb3 {[%clk 0:00:09]}  Re5 {[%clk 0:00:16]} 72. Rc3 {[%clk 0:00:09]}  Rd5 {[%clk 0:00:14]} 73. Ra3 {[%clk 0:00:09]}  Rd4 {[%clk 0:00:12]} 74. Rb3 {[%clk 0:00:09]}  Kg5 {[%clk 0:00:11]} 75. Rb5+ {[%clk 0:00:09]}  Kf6 {[%clk 0:00:11]} 76. Rc5 {[%clk 0:00:09]}  Ke6 {[%clk 0:00:12]} 77. Ra5 {[%clk 0:00:09]}  Rc4 {[%clk 0:00:10]} 78. Rg5 {[%clk 0:00:09]}  Rc2 {[%clk 0:00:08]} 79. Rxg4 {[%clk 0:00:09]}  Kf5 {[%clk 0:00:09]} 80. Rf4+ {[%clk 0:00:09]}  Ke5 {[%clk 0:00:09]} 81. Rf3 {[%clk 0:00:10]}  Rc4 {[%clk 0:00:09]} 82. Kh3 {[%clk 0:00:09]}  Ke6 {[%clk 0:00:06]} 83. g4 {[%clk 0:00:10]}  Rc1 {[%clk 0:00:07]} 84. Kh4 {[%clk 0:00:10]}  Rh1+ {[%clk 0:00:07]} 85. Kg5 {[%clk 0:00:10]}  Ke7 {[%clk 0:00:07]} 86. Rf5 {[%clk 0:00:11]}  Rh2 {[%clk 0:00:08]} 87. Kg6 {[%clk 0:00:11]}  Rg2 {[%clk 0:00:08]} 88. g5 {[%clk 0:00:11]}  Ke6 {[%clk 0:00:09]} 89. Rf4 {[%clk 0:00:11]}  Ke7 {[%clk 0:00:09]} 90. Rf5 {[%clk 0:00:11]}  Rg3 {[%clk 0:00:09]} 91. Kg7 {[%clk 0:00:10]}  Ke6 {[%clk 0:00:10]} 92. Rf6+ {[%clk 0:00:10]}  Ke5 {[%clk 0:00:10]} 93. g6 {[%clk 0:00:11]}  Rg5 {[%clk 0:00:10]} 94. Rf8 {[%clk 0:00:10]}  Ke6 {[%clk 0:00:10]} 95. Re8+ {[%clk 0:00:10]}  Kd7 {[%clk 0:00:11]} 96. Rf8 {[%clk 0:00:11]}  Ke6 {[%clk 0:00:11]} 97. Re8+ {[%clk 0:00:11]}  Kd7 {[%clk 0:00:11]} 98. Re2 {[%clk 0:00:11]}  Rg3 {[%clk 0:00:10]} 99. Re5 {[%clk 0:00:07]}  Kd6 {[%clk 0:00:10]} 100. Re4 {[%clk 0:00:07]}  Kd5 {[%clk 0:00:11]} 101. Re8 {[%clk 0:00:08]}  Kd6 {[%clk 0:00:11]} 102. Kf7 {[%clk 0:00:08]}  Rf3+ {[%clk 0:00:11]} 103. Kg7 {[%clk 0:00:09]}  Kd7 {[%clk 0:00:11]} 104. Re4 {[%clk 0:00:09]}  Rh3 {[%clk 0:00:11]} 105. Rf4 {[%clk 0:00:09]}  Rg3 {[%clk 0:00:11]} 106. Kf7 {[%clk 0:00:10]}  Kd6 {[%clk 0:00:11]} 107. g7 {[%clk 0:00:10]}  Kd7 {[%clk 0:00:11]} 108. g8=Q {[%clk 0:00:11]}  Kd6 {[%clk 0:00:00]} 109. Qxg3 {[%clk 0:00:11]} 1-0


[Site "https://www.chess.com"]

[Event "Titled Tuesday Blitz July 4 Late 2023"]
[White "Spichkin, Alexander"]
[Black "Novik, Maxim"]
[WhiteFideId "4144074"]
[BlackFideId "4102924"]
[WhiteElo "2281"]
[BlackElo "2513"]
[Result "0-1"]
[Round "3"]
[TimeControl "180+2"]
[Date "2023.07.04"]
[WhiteClock "0:01:21"]
[BlackClock "0:01:29"]
[Board "127"]

1. f4 {[%clk 0:02:59]}  g6 {[%clk 0:02:59]} 2. Nf3 {[%clk 0:02:59]}  Bg7 {[%clk 0:02:59]} 3. d3 {[%clk 0:02:57]}  b6 {[%clk 0:02:59]} 4. e4 {[%clk 0:02:57]}  Bb7 {[%clk 0:02:59]} 5. Be2 {[%clk 0:02:57]}  d6 {[%clk 0:02:59]} 6. O-O {[%clk 0:02:58]}  Nd7 {[%clk 0:03:00]} 7. Nc3 {[%clk 0:02:58]}  e6 {[%clk 0:02:59]} 8. Qe1 {[%clk 0:02:57]}  Ne7 {[%clk 0:02:59]} 9. Qh4 {[%clk 0:02:56]}  h6 {[%clk 0:02:59]} 10. Bd2 {[%clk 0:02:54]}  c5 {[%clk 0:02:59]} 11. Rae1 {[%clk 0:02:54]}  a6 {[%clk 0:02:59]} 12. Nd1 {[%clk 0:02:54]}  b5 {[%clk 0:02:58]} 13. Bc3 {[%clk 0:02:54]}  Nc6 {[%clk 0:02:46]} 14. Qg3 {[%clk 0:02:52]}  Nd4 {[%clk 0:02:43]} 15. Nxd4 {[%clk 0:02:51]}  cxd4 {[%clk 0:02:42]} 16. Bd2 {[%clk 0:02:47]}  Rc8 {[%clk 0:02:42]} 17. c3 {[%clk 0:02:47]}  Qb6 {[%clk 0:02:39]} 18. Kh1 {[%clk 0:02:46]}  O-O {[%clk 0:02:36]} 19. cxd4 {[%clk 0:02:38]}  Rc2 {[%clk 0:02:25]} 20. Be3 {[%clk 0:02:33]}  Bxd4 {[%clk 0:02:23]} 21. f5 {[%clk 0:02:28]}  exf5 {[%clk 0:02:16]} 22. Bxh6 {[%clk 0:02:24]}  fxe4 {[%clk 0:02:09]} 23. Bxf8 {[%clk 0:02:19]}  Nxf8 {[%clk 0:02:03]} 24. dxe4 {[%clk 0:02:19]}  Bxe4 {[%clk 0:02:00]} 25. Bd3 {[%clk 0:02:18]}  Bxg2+ {[%clk 0:01:58]} 26. Qxg2 {[%clk 0:02:16]}  Rxg2 {[%clk 0:01:57]} 27. Kxg2 {[%clk 0:02:17]}  Ne6 {[%clk 0:01:53]} 28. Re4 {[%clk 0:02:11]}  Be5 {[%clk 0:01:51]} 29. Bc2 {[%clk 0:01:58]}  Qc5 {[%clk 0:01:47]} 30. Ne3 {[%clk 0:01:57]}  Kg7 {[%clk 0:01:44]} 31. Bb3 {[%clk 0:01:56]}  Ng5 {[%clk 0:01:42]} 32. Ng4 {[%clk 0:01:21]}  Qc6 {[%clk 0:01:29]} 0-1


[Site "https://www.chess.com"]

[Event "Titled Tuesday Blitz July 4 Late 2023"]
[White "Womacka, Mathias"]
[Black "rionelG"]
[WhiteFideId "4611390"]
[WhiteElo "2511"]
[BlackElo "2274"]
[Result "1-0"]
[Round "3"]
[TimeControl "180+2"]
[Date "2023.07.04"]
[WhiteClock "0:00:41"]
[BlackClock "0:00:00"]
[Board "128"]

1. e4 {[%clk 0:03:00]}  c5 {[%clk 0:02:53]} 2. Nf3 {[%clk 0:03:00]}  d6 {[%clk 0:02:53]} 3. d4 {[%clk 0:03:00]}  cxd4 {[%clk 0:02:54]} 4. Nxd4 {[%clk 0:03:00]}  Nf6 {[%clk 0:02:53]} 5. Nc3 {[%clk 0:03:01]}  a6 {[%clk 0:02:53]} 6. Be2 {[%clk 0:03:01]}  e5 {[%clk 0:02:53]} 7. Nb3 {[%clk 0:03:01]}  Be7 {[%clk 0:02:53]} 8. O-O {[%clk 0:03:00]}  Be6 {[%clk 0:02:54]} 9. f4 {[%clk 0:02:59]}  Qc7 {[%clk 0:02:54]} 10. Kh1 {[%clk 0:02:59]}  Nbd7 {[%clk 0:02:52]} 11. g4 {[%clk 0:02:58]}  exf4 {[%clk 0:02:51]} 12. g5 {[%clk 0:02:57]}  Ng8 {[%clk 0:02:41]} 13. Bxf4 {[%clk 0:02:57]}  h6 {[%clk 0:02:38]} 14. g6 {[%clk 0:02:57]}  fxg6 {[%clk 0:02:37]} 15. Bg4 {[%clk 0:02:57]}  Bf7 {[%clk 0:02:30]} 16. Nd5 {[%clk 0:02:27]}  Bxd5 {[%clk 0:02:29]} 17. exd5 {[%clk 0:02:27]}  O-O-O {[%clk 0:02:10]} 18. Nd4 {[%clk 0:02:26]}  Qb6 {[%clk 0:01:21]} 19. Ne6 {[%clk 0:02:22]}  Ngf6 {[%clk 0:01:15]} 20. Nxd8 {[%clk 0:02:18]}  Bxd8 {[%clk 0:01:06]} 21. Be6 {[%clk 0:02:14]}  Qxb2 {[%clk 0:00:52]} 22. Bxd6 {[%clk 0:02:09]}  Qb6 {[%clk 0:00:29]} 23. Bg3 {[%clk 0:02:06]}  Bc7 {[%clk 0:00:25]} 24. Rb1 {[%clk 0:01:55]}  Qc5 {[%clk 0:00:20]} 25. d6 {[%clk 0:01:45]}  Bb6 {[%clk 0:00:19]} 26. Qf3 {[%clk 0:01:36]}  Re8 {[%clk 0:00:17]} 27. Bxd7+ {[%clk 0:01:22]}  Nxd7 {[%clk 0:00:15]} 28. Bf2 {[%clk 0:01:22]}  Qxd6 {[%clk 0:00:09]} 29. Rfd1 {[%clk 0:01:20]}  Qc7 {[%clk 0:00:08]} 30. Rxd7 {[%clk 0:01:14]}  Kxd7 {[%clk 0:00:07]} 31. Bxb6 {[%clk 0:01:12]}  Qc6 {[%clk 0:00:08]} 32. Qxc6+ {[%clk 0:01:11]}  Kxc6 {[%clk 0:00:09]} 33. Bd4 {[%clk 0:01:11]}  Re2 {[%clk 0:00:08]} 34. Rb6+ {[%clk 0:01:04]}  Kd5 {[%clk 0:00:08]} 35. c3 {[%clk 0:01:04]}  Rxa2 {[%clk 0:00:07]} 36. Rxb7 {[%clk 0:01:02]}  a5 {[%clk 0:00:08]} 37. Rxg7 {[%clk 0:01:02]}  a4 {[%clk 0:00:06]} 38. Rxg6 {[%clk 0:01:02]}  a3 {[%clk 0:00:05]} 39. Ra6 {[%clk 0:01:01]}  Kc4 {[%clk 0:00:05]} 40. Bg7 {[%clk 0:00:49]}  h5 {[%clk 0:00:05]} 41. Bf8 {[%clk 0:00:48]}  Kb3 {[%clk 0:00:04]} 42. c4 {[%clk 0:00:44]}  Kxc4 {[%clk 0:00:02]} 43. Rxa3 {[%clk 0:00:43]}  Rf2 {[%clk 0:00:02]} 44. Bd6 {[%clk 0:00:41]}  Rf6 {[%clk 0:00:00]} 45. Bg3 {[%clk 0:00:41]} 1-0


[Site "https://www.chess.com"]